[Event "3rd HoliCup Lake City 2019"]
[Site "Udaipur"]
[Date "2019.03.31"]
[Round "8.6"]
[White "Dhiraj, Patil"]
[Black "Shubham"]
[Result "0-1"]
[ECO "E62"]
[WhiteElo "1425"]
[BlackElo "1880"]
[Annotator "NA"]
[PlyCount "100"]
[EventDate "2019.??.??"]
[EventCountry "IND"]
[SourceTitle "playchess.com"]
[Source "ChessBase"]
[SourceQuality "1"]
[TimeControl "5400+30"]

1. d4 {[%emt 0:00:00]} d6 {[%emt 0:00:00]} 2. Nf3 {[%emt 0:00:00]} g6 {[%emt 0:00:00]} 3. g3 {[%emt 0:00:06]} Bg7 {[%emt 0:00:00]} 4. Bg2 {[%emt 0:00:05]} Nf6 {[%emt 0:01:06]} 5. O-O {[%emt 0:00:10]} O-O {[%emt 0:00:19]} 6. c4 {[%emt 0:02:03]} c6 {[%emt 0:01:03]} 7. Nc3 {[%emt 0:00:31]} Qa5 {[%emt 0:01:41]} 8. e4 {[%emt 0:02:28]} Qh5 {[%emt 0:06:52]} 9. Ng5 {[%emt 0:15:03]} Qxd1 {[%emt 0:02:38]} 10. Rxd1 {[%emt 0:00:10]} h6 {[%emt 0:02:42]} 11. Nf3 {[%emt 0:01:24]} Bg4 {[%emt 0:00:18]} 12. h3 {[%emt 0:00:26]} Bxf3 {[%emt 0:00:10]} 13. Bxf3 {[%emt 0:00:06]} Nfd7 {[%emt 0:01:03]} 14. Be3 {[%emt 0:00:42]} Na6 {[%emt 0:00:16]} 15. a3 {[%emt 0:00:24]} Rab8 {[%emt 0:03:33]} 16. Rac1 {[%emt 0:02:54]} c5 {[%emt 0:01:58]} 17. d5 {[%emt 0:00:17]} Nc7 {[%emt 0:00:39]} 18. Be2 {[%emt 0:04:36]} a6 {[%emt 0:06:24]} 19. a4 {[%emt 0:01:27]} b6 {[%emt 0:00:42]} 20. f4 {[%emt 0:01:07]} Rb7 {[%emt 0:01:46]} 21. Bg4 {[%emt 0:00:25]} Rd8 {[%emt 0:01:17]} 22. Bxd7 {[%emt 0:00:32]} Rxd7 {[%emt 0:00:02]} 23. Ra1 {[%emt 0:04:35]} Rd8 {[%emt 0:01:03]} 24. Ra3 {[%emt 0:00:26]} Rdb8 {[%emt 0:00:19]} 25. Ra2 {[%emt 0:07:24]} b5 {[%emt 0:01:20]} 26. cxb5 {[%emt 0:00:19]} axb5 {[%emt 0:00:02]} 27. axb5 {[%emt 0:03:00]} Nxb5 {[%emt 0:00:14]} 28. Na4 {[%emt 0:02:26]} Bd4 {[%emt 0:03:05]} 29. Kf2 {[%emt 0:02:47]} Ra7 {[%emt 0:04:29]} 30. Rd2 {[%emt 0:09:39]} Rba8 {[%emt 0:01:01]} 31. b3 {[%emt 0:00:35]} Bxe3+ {[%emt 0:00:41]} 32. Kxe3 {[%emt 0:00:11]} Nd4 {[%emt 0:00:04]} 33. Rxd4 {[%emt 0:04:24]} cxd4+ {[%emt 0:00:26]} 34. Kxd4 {[%emt 0:00:06]} Rb8 {[%emt 0:00:39]} 35. Kc3 {[%emt 0:00:22]} Rc7+ {[%emt 0:00:24]} 36. Kb2 {[%emt 0:02:18]} Rb4 {[%emt 0:00:40]} 37. Nc3 {[%emt 0:00:48]} Rd4 {[%emt 0:00:08]} 38. Kc2 {[%emt 0:02:16]} Rxe4 {[%emt 0:00:17]} 39. Kd3 {[%emt 0:01:36]} Rb4 {[%emt 0:01:00]} 40. Ra3 {[%emt 0:00:17]} Rcb7 {[%emt 0:00:10]} 41. Kc2 {[%emt 0:00:09]} g5 {[%emt 0:02:23]} 42. fxg5 {[%emt 0:00:28]} hxg5 {[%emt 0:00:02]} 43. Ra4 {[%emt 0:00:51]} Rxb3 {[%emt 0:00:18]} 44. Rg4 {[%emt 0:00:42]} f6 {[%emt 0:00:17]} 45. h4 {[%emt 0:00:06]} Ra3 {[%emt 0:00:44]} 46. hxg5 {[%emt 0:00:20]} Rc7 {[%emt 0:00:14]} 47. gxf6+ {[%emt 0:00:20]} Kf7 {[%emt 0:00:04]} 48. fxe7 {[%emt 0:00:51]} Rcxc3+ {[%emt 0:00:18]} 49. Kd2 {[%emt 0:00:36]} Kxe7 {[%emt 0:00:03]} 50. Re4+ {[%emt 0:00:17]} Kd7 {[%emt 0:00:08]} 0-1

[Event "3rd HoliCup Lake City 2019"]
[Site "Udaipur"]
[Date "2019.03.31"]
[Round "8.9"]
[White "Ranjith, R.K."]
[Black "Sauravh, Khherdekar"]
[Result "0-1"]
[ECO "C03"]
[WhiteElo "1790"]
[BlackElo "2272"]
[Annotator "NA"]
[PlyCount "56"]
[EventDate "2019.??.??"]
[EventCountry "IND"]
[SourceTitle "playchess.com"]
[Source "ChessBase"]
[SourceQuality "1"]
[TimeControl "5400+30"]

1. e4 {[%emt 0:00:00]} e6 {[%emt 0:00:00]} 2. d4 {[%emt 0:00:00]} d5 {[%emt 0:00:00]} 3. Nd2 {[%emt 0:00:00]} a6 {[%emt 0:00:08]} 4. Bd3 {[%emt 0:01:31]} c5 {[%emt 0:00:13]} 5. c3 {[%emt 0:00:28]} cxd4 {[%emt 0:00:25]} 6. cxd4 {[%emt 0:01:44]} dxe4 {[%emt 0:00:18]} 7. Nxe4 {[%emt 0:00:13]} Bb4+ {[%emt 0:00:20]} 8. Nc3 {[%emt 0:00:53]} Nf6 {[%emt 0:00:14]} 9. Nf3 {[%emt 0:12:29]} O-O {[%emt 0:00:27]} 10. O-O {[%emt 0:00:04]} Nc6 {[%emt 0:00:04]} 11. a3 {[%emt 0:02:12]} Be7 {[%emt 0:00:08]} 12. Bc2 {[%emt 0:01:09] LiveBook: 42 Games} b5 {[%emt 0:00:54]} 13. Qd3 {[%emt 0:01:06]} Bb7 {[%emt 0:00:30]} 14. Bg5 {[%emt 0:01:58]} g6 {[%emt 0:00:07] D27: Queen's Gambit Accepted: Classical main line: 7 e4!? and 7 a4} 15. Rfd1 {[%emt 0:01:34]} (15. Rad1 Rc8 16. Rfe1 Na5 17. Bh6 Re8 18. Ne5 Nc4 19. Qe2 Qb6 20. Bb3 Nd5 21. Bxc4 bxc4 22. Na4 {0-1 (34) Graf,A (2576)-Babula,V (2556) Germany 2017}) 15... Nd5 {[%emt 0:02:03]} 16. Ne4 $146 {[%emt 0:03:36]} ({Predecessor:} 16. Bxe7 Ncxe7 17. Ne4 Nf5 18. Nc5 Qc7 19. g3 Rac8 {½-½ (50) Frischmann,R (1906)-Mueller,T (2064) Stuttgart 2010}) 16... Bxg5 {[%emt 0:02:10]} 17. Nfxg5 {[%emt 0:07:25]} Qe7 {[%emt 0:01:27]} 18. Qh3 {[%emt 0:18:34]} f5 {[%emt 0:00:39]} 19. Nc5 {[%emt 0:22:22]} Qxg5 {[%emt 0:00:49]} 20. Nxb7 {[%emt 0:00:58]} Qf6 {[%emt 0:00:55]} 21. Nc5 {[%emt 0:00:55]} Nxd4 {[%emt 0:00:50]} 22. Rxd4 {[%emt 0:00:25]} Qxd4 {[%emt 0:00:07]} 23. Nxe6 {[%emt 0:00:04]} Qxb2 {[%emt 0:00:23]} 24. Re1 {[%emt 0:04:11]} Qxc2 {[%emt 0:00:31]} 25. Qh6 {[%emt 0:00:41]} Qc3 {[%emt 0:00:22]} 26. Rc1 {[%emt 0:01:04]} Qe5 {[%emt 0:00:49]} 27. Ng5 {[%emt 0:02:45]} Ra7 $19 {[%emt 0:00:21]} 28. h4 {[%emt 0:00:26]} Qg7 {[%emt 0:00:47]} 0-1

[Event "3rd HoliCup Lake City 2019"]
[Site "Udaipur"]
[Date "2019.03.31"]
[Round "8.10"]
[White "Chandrajeet, Singh Rajawat"]
[Black "Joshi, Govind Ballabh"]
[Result "0-1"]
[ECO "D00"]
[WhiteElo "1760"]
[BlackElo "2128"]
[Annotator "NA"]
[PlyCount "46"]
[EventDate "2019.??.??"]
[EventCountry "IND"]
[SourceTitle "playchess.com"]
[Source "ChessBase"]
[SourceQuality "1"]
[TimeControl "5400+30"]

1. d4 {[%emt 0:00:00]} d5 {[%emt 0:02:30]} 2. Bf4 {[%emt 0:00:00]} Nf6 {[%emt 0:00:45]} 3. e3 {[%emt 0:00:00]} e6 {[%emt 0:00:33]} 4. Nd2 {[%emt 0:00:00]} c5 {[%emt 0:00:19]} 5. c3 {[%emt 0:00:00]} Nc6 {[%emt 0:00:36]} 6. Ngf3 {[%emt 0:00:21]} cxd4 {[%emt 0:02:37]} 7. exd4 {[%emt 0:00:08]} Nh5 {[%emt 0:00:15]} 8. Be3 {[%emt 0:09:41]} Bd6 {[%emt 0:00:56]} 9. Ne5 {[%emt 0:01:51]} g6 $11 {[%emt 0:01:28] LiveBook: 112 Games} 10. Ndf3 {[%emt 0:16:58]} f6 {[%emt 0:09:37]} 11. Nxc6 {[%emt 0:03:31]} bxc6 {[%emt 0:00:07]} 12. Qd2 {[%emt 0:06:04]} O-O {[%emt 0:04:00]} 13. Be2 {[%emt 0:02:07]} Qc7 {[%emt 0:03:06]} 14. O-O {[%emt 0:00:30]} Nf4 {[%emt 0:02:45]} 15. Rfe1 {[%emt 0:02:33]} Nxe2+ {[%emt 0:00:35]} 16. Qxe2 {[%emt 0:00:15]} g5 {[%emt 0:01:10]} 17. h3 {[%emt 0:02:07]} Qg7 {[%emt 0:13:06]} 18. Nh2 {[%emt 0:07:55]} Bd7 {[%emt 0:01:11]} 19. Qd2 {[%emt 0:01:34]} Rf7 {[%emt 0:04:29]} 20. f4 {[%emt 0:01:36]} h6 {[%emt 0:02:46]} 21. Re2 {[%emt 0:01:21]} Qg6 {[%emt 0:04:23]} 22. Rf1 {[%emt 0:01:53]} Raf8 {[%emt 0:00:30]} 23. Ref2 {[%emt 0:00:30]} Kh7 {[%emt 0:00:30]} 0-1

[Event "3rd HoliCup Lake City 2019"]
[Site "Udaipur"]
[Date "2019.03.31"]
[Round "8.11"]
[White "Atri, Chattopadhyay"]
[Black "Dahale, Atul"]
[Result "1/2-1/2"]
[ECO "B22"]
[WhiteElo "1743"]
[BlackElo "2102"]
[Annotator "NA"]
[PlyCount "38"]
[EventDate "2019.??.??"]
[EventCountry "IND"]
[SourceTitle "playchess.com"]
[Source "ChessBase"]
[SourceQuality "1"]
[TimeControl "5400+30"]

1. e4 {[%emt 0:00:00]} c5 {[%emt 0:00:00]} 2. c3 {[%emt 0:00:00]} Qa5 {[%emt 0:00:00]} 3. Nf3 {[%emt 0:00:05]} d6 {[%emt 0:00:40]} 4. Na3 {[%emt 0:00:16]} Nf6 {[%emt 0:00:24]} 5. Nc4 {[%emt 0:00:56]} Qc7 {[%emt 0:00:09]} 6. e5 {[%emt 0:01:22]} dxe5 {[%emt 0:01:07]} 7. Ncxe5 {[%emt 0:00:06]} Nbd7 {[%emt 0:01:15]} 8. d4 {[%emt 0:02:27]} e6 {[%emt 0:00:11]} 9. Bf4 {[%emt 0:08:54]} Bd6 {[%emt 0:02:11]} 10. Nxd7 {[%emt 0:02:43]} Bxd7 {[%emt 0:03:44]} 11. Bxd6 {[%emt 0:00:09]} Qxd6 {[%emt 0:00:07]} 12. dxc5 {[%emt 0:00:20]} Qxc5 {[%emt 0:00:17]} 13. Qd4 {[%emt 0:00:35]} Qxd4 {[%emt 0:00:36]} 14. Nxd4 {[%emt 0:00:06]} a6 {[%emt 0:00:06]} 15. Be2 $11 {[%emt 0:00:51]} O-O {[%emt 0:03:04]} 16. Nf3 {[%emt 0:04:07]} Nd5 {[%emt 0:04:55]} 17. Ne5 {[%emt 0:01:41]} Rfd8 {[%emt 0:03:44]} 18. O-O-O {[%emt 0:01:24]} Ba4 {[%emt 0:01:24]} 19. Rd4 {[%emt 0:01:26]} Be8 {[%emt 0:09:05]} 1/2-1/2

[Event "3rd HoliCup Lake City 2019"]
[Site "Udaipur"]
[Date "2019.03.31"]
[Round "8.12"]
[White "Dutta, Joydeep"]
[Black "Suvankar, Maity"]
[Result "1-0"]
[ECO "B40"]
[WhiteElo "2097"]
[BlackElo "1911"]
[Annotator "NA"]
[PlyCount "37"]
[EventDate "2019.??.??"]
[EventCountry "IND"]
[SourceTitle "playchess.com"]
[Source "ChessBase"]
[SourceQuality "1"]
[TimeControl "5400+30"]

1. e4 {[%emt 0:00:00]} c5 {[%emt 0:00:19]} 2. Nf3 {[%emt 0:00:00]} e6 {[%emt 0:00:31]} 3. c3 {[%emt 0:00:06]} d5 {[%emt 0:02:41]} 4. e5 {[%emt 0:00:18]} a6 {[%emt 0:01:26]} 5. d4 {[%emt 0:00:35]} Nc6 {[%emt 0:00:41]} 6. Bd3 {[%emt 0:00:55]} Qb6 {[%emt 0:04:54]} 7. O-O {[%emt 0:00:44]} Bd7 {[%emt 0:01:25]} 8. dxc5 {[%emt 0:01:25]} Bxc5 {[%emt 0:00:38]} 9. Nbd2 {[%emt 0:00:44]} Qc7 {[%emt 0:00:42]} 10. Nb3 {[%emt 0:01:04]} Ba7 {[%emt 0:04:36]} 11. Qe2 {[%emt 0:00:55]} Nge7 $14 {[%emt 0:00:31]} 12. Bf4 {[%emt 0:00:45]} Ng6 {[%emt 0:00:58]} 13. Bg3 {[%emt 0:00:09]} Rc8 {[%emt 0:02:54]} 14. Rfe1 {[%emt 0:02:44]} Na5 {[%emt 0:02:51]} 15. Nxa5 {[%emt 0:02:15]} Qxa5 {[%emt 0:00:07]} 16. Ng5 {[%emt 0:00:25]} Bb5 {[%emt 0:01:45]} 17. Qf3 {[%emt 0:02:07]} Bxd3 {[%emt 0:00:11]} 18. Qxf7+ {[%emt 0:00:07]} Kd8 {[%emt 0:00:03]} 19. Nxe6# {[%emt 0:00:06] Ke8 Qf4} 1-0

[Event "3rd HoliCup Lake City 2019"]
[Site "Udaipur"]
[Date "2019.03.31"]
[Round "8.13"]
[White "Arun Kataria"]
[Black "Rathore, S.K."]
[Result "0-1"]
[ECO "B92"]
[WhiteElo "1581"]
[BlackElo "2092"]
[Annotator "NA"]
[PlyCount "86"]
[EventDate "2019.??.??"]
[EventCountry "IND"]
[SourceTitle "playchess.com"]
[Source "ChessBase"]
[SourceQuality "1"]
[TimeControl "5400+30"]

1. e4 {[%emt 0:00:00]} c5 {[%emt 0:00:34]} 2. Nf3 {[%emt 0:00:00]} d6 {[%emt 0:00:41]} 3. d4 {[%emt 0:00:00]} cxd4 {[%emt 0:00:38]} 4. Nxd4 {[%emt 0:00:04]} Nf6 {[%emt 0:00:17]} 5. Nc3 {[%emt 0:00:07]} a6 {[%emt 0:00:16]} 6. Be2 {[%emt 0:00:08]} e5 {[%emt 0:01:44]} 7. Nb3 {[%emt 0:00:12]} Be7 {[%emt 0:01:59]} 8. O-O {[%emt 0:00:08]} O-O {[%emt 0:00:39]} 9. Be3 {[%emt 0:00:04]} b5 {[%emt 0:00:55]} 10. a3 {[%emt 0:00:09]} Bb7 {[%emt 0:01:00]} 11. f3 {[%emt 0:00:12]} Nbd7 {[%emt 0:00:39]} 12. Qd2 {[%emt 0:01:31]} Rc8 {[%emt 0:00:55]} 13. Rad1 {[%emt 0:01:58]} Qc7 {[%emt 0:01:11]} 14. Bd3 {[%emt 0:03:34]} Nc5 $11 {[%emt 0:04:36]} 15. Ne2 {[%emt 0:03:50]} d5 {[%emt 0:09:08]} 16. Nxc5 {[%emt 0:01:52]} Bxc5 {[%emt 0:00:04]} 17. Ng3 {[%emt 0:00:10]} dxe4 {[%emt 0:05:26]} 18. Bxe4 {[%emt 0:01:05]} Nxe4 {[%emt 0:03:32]} 19. Nxe4 {[%emt 0:01:11]} Bxe4 {[%emt 0:06:51]} 20. fxe4 {[%emt 0:00:17]} Rfd8 {[%emt 0:01:29]} 21. Qf2 {[%emt 0:02:34]} Rxd1 {[%emt 0:00:44]} 22. Rxd1 {[%emt 0:00:05]} Bxe3 {[%emt 0:00:22]} 23. Qxe3 {[%emt 0:00:06]} Qxc2 {[%emt 0:00:14]} 24. Qd2 {[%emt 0:01:19]} h6 {[%emt 0:06:47]} 25. Qd7 {[%emt 0:03:32]} Rc7 {[%emt 0:08:06]} 26. Qd8+ {[%emt 0:01:59]} Kh7 {[%emt 0:00:05]} 27. Rf1 {[%emt 0:02:33]} Qc5+ {[%emt 0:02:02]} 28. Kh1 {[%emt 0:00:19]} Qc4 {[%emt 0:02:50]} 29. Kg1 {[%emt 0:03:51]} Rc6 {[%emt 0:02:05]} 30. Qh4 {[%emt 0:17:24]} Qd4+ {[%emt 0:02:25]} 31. Kh1 {[%emt 0:07:18]} Rf6 {[%emt 0:02:26]} 32. Rg1 {[%emt 0:04:34]} Qxb2 {[%emt 0:00:46]} 33. Qg3 {[%emt 0:00:13]} a5 {[%emt 0:01:35]} 34. Qd3 {[%emt 0:00:57]} b4 {[%emt 0:00:59]} 35. axb4 {[%emt 0:00:19]} axb4 {[%emt 0:00:36]} 36. h3 {[%emt 0:00:06]} Qc3 {[%emt 0:00:53]} 37. Qb5 {[%emt 0:00:38]} Qd4 {[%emt 0:01:06]} 38. Qb7 {[%emt 0:01:01]} Rf4 {[%emt 0:02:24]} 39. Re1 {[%emt 0:00:47]} Qc4 {[%emt 0:03:13]} 40. Kh2 {[%emt 0:03:10]} Rf2 {[%emt 0:02:02]} 41. Rg1 {[%emt 0:00:47]} b3 {[%emt 0:00:38]} 42. Qb8 {[%emt 0:01:15]} Qc3 {[%emt 0:02:22]} 43. Qb6 {[%emt 0:01:56]} Qc2 {[%emt 0:00:27]} 0-1

[Event "3rd HoliCup Lake City 2019"]
[Site "Udaipur"]
[Date "2019.03.31"]
[Round "8.14"]
[White "Anadkat, Kartavya"]
[Black "Heikrujam, Jacky Singh"]
[Result "1/2-1/2"]
[ECO "B12"]
[WhiteElo "1998"]
[BlackElo "1886"]
[Annotator "NA"]
[PlyCount "175"]
[EventDate "2019.??.??"]
[EventCountry "IND"]
[SourceTitle "playchess.com"]
[Source "ChessBase"]
[SourceQuality "1"]
[TimeControl "5400+30"]

1. e4 {[%emt 0:00:00]} c6 {[%emt 0:01:12]} 2. d4 {[%emt 0:00:00]} d5 {[%emt 0:00:02]} 3. e5 {[%emt 0:00:00]} Bf5 {[%emt 0:01:52]} 4. h4 {[%emt 0:00:00]} h6 {[%emt 0:01:15]} 5. g4 {[%emt 0:00:00]} Bd7 {[%emt 0:00:53]} 6. h5 {[%emt 0:00:00]} c5 {[%emt 0:00:10]} 7. c3 {[%emt 0:00:01]} Qb6 {[%emt 0:00:55]} 8. Na3 {[%emt 0:04:40]} cxd4 {[%emt 0:02:08]} 9. cxd4 {[%emt 0:00:02]} Qb4+ {[%emt 0:01:12]} 10. Bd2 {[%emt 0:14:01]} Qxd4 {[%emt 0:03:03]} 11. Nf3 {[%emt 0:00:01]} Qe4+ {[%emt 0:08:57]} 12. Be2 {[%emt 0:00:02]} a6 {[%emt 0:07:54]} 13. Qb3 {[%emt 0:04:29]} Nc6 {[%emt 0:03:07]} 14. Rh4 {[%emt 0:19:49]} Nxe5 {[%emt 0:06:40]} 15. Nxe5 {[%emt 0:00:32]} Qxe5 {[%emt 0:00:20]} 16. Qxb7 {[%emt 0:00:06]} Rb8 {[%emt 0:08:25]} 17. Qxa6 {[%emt 0:00:05]} Nf6 {[%emt 0:02:32]} 18. Kf1 {[%emt 0:17:41]} Ne4 {[%emt 0:14:13]} 19. Be3 {[%emt 0:07:29]} Ng3+ {[%emt 0:13:37]} 20. fxg3 {[%emt 0:12:35]} Qxe3 {[%emt 0:00:03]} 21. Rh2 {[%emt 0:02:32]} e5 {[%emt 0:04:35]} 22. Nb5 {[%emt 0:01:27]} Bc5 {[%emt 0:00:46]} 23. Rg2 {[%emt 0:02:31]} O-O {[%emt 0:00:33]} 24. Nc3 {[%emt 0:02:03]} Be6 {[%emt 0:10:28]} 25. Qd3 {[%emt 0:06:30]} Qg5 {[%emt 0:00:19]} 26. Rd1 {[%emt 0:02:10]} e4 {[%emt 0:03:18]} 27. Qa6 {[%emt 0:00:05]} Be3 {[%emt 0:01:31]} 28. Qa5 {[%emt 0:01:23]} Bb6 {[%emt 0:03:14]} 29. Qa4 {[%emt 0:02:25]} f5 {[%emt 0:00:32]} 30. Qc6 {[%emt 0:01:09]} Qf6 {[%emt 0:00:35]} 31. Nxd5 {[%emt 0:00:59]} Bxd5 {[%emt 0:00:01]} 32. Qxf6 {[%emt 0:00:20]} Rxf6 {[%emt 0:00:41]} 33. Rxd5 {[%emt 0:00:02]} fxg4+ {[%emt 0:00:49]} 34. Ke1 {[%emt 0:00:00]} Rc8 {[%emt 0:00:32]} 35. Bxg4 {[%emt 0:00:44]} Rc1+ {[%emt 0:00:20]} 36. Bd1 {[%emt 0:00:02]} e3 {[%emt 0:00:36]} 37. a4 {[%emt 0:00:18]} Rf2 {[%emt 0:00:26]} 38. Rxf2 {[%emt 0:00:59]} exf2+ {[%emt 0:00:01]} 39. Kf1 {[%emt 0:01:04]} Rb1 {[%emt 0:00:59]} 40. b3 {[%emt 0:00:51]} Kf8 {[%emt 0:00:21]} 41. Rd6 {[%emt 0:00:45]} Bc5 {[%emt 0:00:40]} 42. Rd5 {[%emt 0:00:05]} Bb6 {[%emt 0:00:28]} 43. a5 {[%emt 0:00:12]} Bxa5 {[%emt 0:00:36]} 44. Rxa5 {[%emt 0:00:39]} Rxd1+ {[%emt 0:00:02]} 45. Kxf2 {[%emt 0:00:01]} Rd3 46. Rf5+ {[%emt 0:00:28]} Ke7 {[%emt 0:01:09]} 47. Rf3 {[%emt 0:00:02]} Rd5 {[%emt 0:00:21]} 48. g4 {[%emt 0:00:05]} Rg5 {[%emt 0:00:45]} 49. Rf4 {[%emt 0:00:44]} g6 {[%emt 0:00:40]} 50. hxg6 {[%emt 0:01:15]} Rxg6 {[%emt 0:00:02]} 51. Kf3 {[%emt 0:00:18]} Rg5 {[%emt 0:01:04]} 52. Rf5 {[%emt 0:00:48]} Rg8 {[%emt 0:00:26]} 53. Rb5 {[%emt 0:00:22]} Kf6 {[%emt 0:00:30]} 54. Rb6+ {[%emt 0:00:48]} Kg5 {[%emt 0:00:09]} 55. Rb5+ {[%emt 0:00:01]} Kg6 {[%emt 0:00:09]} 56. b4 {[%emt 0:00:59]} Rd8 {[%emt 0:00:22]} 57. Re5 {[%emt 0:00:37]} Rd3+ {[%emt 0:00:08]} 58. Re3 {[%emt 0:00:20]} Rd4 {[%emt 0:00:22]} 59. Re4 {[%emt 0:00:45]} Rd1 {[%emt 0:01:28]} 60. Kf4 {[%emt 0:00:40]} Rf1+ {[%emt 0:00:23]} 61. Kg3 {[%emt 0:00:49]} h5 {[%emt 0:00:40]} 62. gxh5+ {[%emt 0:00:25]} Kxh5 {[%emt 0:00:03]} 63. Rf4 {[%emt 0:00:01]} Rb1 {[%emt 0:00:48]} 64. Kf3 {[%emt 0:00:58]} Kg5 {[%emt 0:00:17]} 65. Rc4 {[%emt 0:00:01]} Kf5 {[%emt 0:00:37]} 66. Ke3 {[%emt 0:00:26]} Ke5 {[%emt 0:00:39]} 67. Rh4 {[%emt 0:00:36]} Rb3+ {[%emt 0:00:35]} 68. Kd2 {[%emt 0:00:05]} Kd5 {[%emt 0:00:17]} 69. Kc2 {[%emt 0:00:07]} Rg3 {[%emt 0:00:14]} 70. Kb2 {[%emt 0:01:05]} Kc6 {[%emt 0:00:13]} 71. Rh5 {[%emt 0:00:11]} Kb6 {[%emt 0:00:15]} 72. Rc5 {[%emt 0:00:31]} Rh3 {[%emt 0:00:13]} 73. Rc3 {[%emt 0:00:19]} Rxc3 {[%emt 0:00:11]} 74. Kxc3 {[%emt 0:00:01]} Kb5 {[%emt 0:00:15]} 75. Kb3 {[%emt 0:00:01]} Kb6 {[%emt 0:00:12]} 76. Kc4 {[%emt 0:00:01]} Kc6 {[%emt 0:00:16]} 77. b5+ {[%emt 0:00:01]} Kb6 {[%emt 0:00:15]} 78. Kb4 {[%emt 0:00:01]} Kb7 {[%emt 0:00:17]} 79. Ka5 Ka7 {[%emt 0:00:09]} 80. b6+ {[%emt 0:00:15]} Kb7 {[%emt 0:00:07]} 81. Kb5 {[%emt 0:00:01]} Kb8 {[%emt 0:00:13]} 82. Ka6 {[%emt 0:00:01]} Ka8 {[%emt 0:00:17]} 83. Kb5 {[%emt 0:00:01]} Kb7 {[%emt 0:00:17]} 84. Kc5 {[%emt 0:00:01]} Kb8 {[%emt 0:00:39]} 85. Kc6 {[%emt 0:00:03]} Kc8 {[%emt 0:00:17]} 86. b7+ {[%emt 0:00:01]} Kb8 {[%emt 0:00:10]} 87. Kd5 {[%emt 0:00:01]} Kc7 {[%emt 0:00:23]} 88. b8=B+ {[%emt 0:00:09]} 1/2-1/2

[Event "3rd HoliCup Lake City 2019"]
[Site "Udaipur"]
[Date "2019.03.31"]
[Round "8.15"]
[White "Arun, Rathi"]
[Black "Hitesh, S. Jariya"]
[Result "1-0"]
[ECO "A05"]
[WhiteElo "1939"]
[BlackElo "1871"]
[Annotator "NA"]
[PlyCount "111"]
[EventDate "2019.??.??"]
[EventCountry "IND"]
[SourceTitle "playchess.com"]
[Source "ChessBase"]
[SourceQuality "1"]
[TimeControl "5400+30"]

1. Nf3 {[%emt 0:00:00]} Nf6 {[%emt 0:00:00]} 2. g3 {[%emt 0:00:30]} g6 {[%emt 0:00:19]} 3. b3 {[%emt 0:00:19]} Bg7 {[%emt 0:00:26]} 4. Bb2 {[%emt 0:00:09]} c5 {[%emt 0:00:24]} 5. Bg2 {[%emt 0:02:57]} Nc6 {[%emt 0:01:06]} 6. O-O {[%emt 0:01:07]} O-O {[%emt 0:00:34]} 7. c4 {[%emt 0:02:24]} d6 {[%emt 0:00:53]} 8. d4 {[%emt 0:04:51]} cxd4 {[%emt 0:09:04]} 9. Nxd4 {[%emt 0:00:31]} Qb6 {[%emt 0:01:27]} 10. Nc2 {[%emt 0:03:08]} a5 {[%emt 0:04:38]} 11. Nc3 {[%emt 0:08:18]} a4 {[%emt 0:02:54]} 12. Nb5 {[%emt 0:01:35]} Be6 {[%emt 0:04:48]} 13. e4 {[%emt 0:07:23]} Nd7 {[%emt 0:05:26]} 14. Bxg7 {[%emt 0:06:49]} Kxg7 {[%emt 0:00:12]} 15. Kh1 {[%emt 0:08:31]} f6 {[%emt 0:05:23]} 16. Ne3 {[%emt 0:04:19]} axb3 {[%emt 0:08:33]} 17. axb3 {[%emt 0:00:56]} Nc5 {[%emt 0:01:18]} 18. Qc2 {[%emt 0:08:25]} Nb4 {[%emt 0:05:00]} 19. Qc3 {[%emt 0:01:10]} Rxa1 {[%emt 0:06:51]} 20. Rxa1 {[%emt 0:01:22]} Ncd3 {[%emt 0:00:21]} 21. Kg1 {[%emt 0:04:07]} Bf7 {[%emt 0:05:21]} 22. Bf1 {[%emt 0:02:00]} Rc8 {[%emt 0:01:28]} 23. Qd2 {[%emt 0:03:54]} Nc5 {[%emt 0:07:03]} 24. Qxb4 {[%emt 0:01:45]} Nxe4 {[%emt 0:00:07]} 25. Qa5 {[%emt 0:04:16]} Qxa5 {[%emt 0:10:35]} 26. Rxa5 {[%emt 0:00:09]} Nd2 {[%emt 0:01:22]} 27. Ra7 {[%emt 0:01:22]} Nxb3 {[%emt 0:01:28]} 28. Rxb7 {[%emt 0:00:19]} Kf8 {[%emt 0:00:51]} 29. Nxd6 {[%emt 0:00:28]} Nc5 {[%emt 0:01:33]} 30. Rxe7 {[%emt 0:01:22]} Kxe7 {[%emt 0:01:15]} 31. Nxc8+ {[%emt 0:00:02]} Kd7 {[%emt 0:01:20]} 32. Nb6+ {[%emt 0:00:03]} Kd6 {[%emt 0:01:16]} 33. Nbd5 {[%emt 0:01:21]} Nd7 {[%emt 0:00:54]} 34. Bh3 {[%emt 0:00:47]} f5 {[%emt 0:00:35]} 35. Kf1 {[%emt 0:00:52]} Ne5 {[%emt 0:00:50]} 36. Ke2 {[%emt 0:00:34]} Nxc4 {[%emt 0:01:07]} 37. Nxc4+ {[%emt 0:00:10]} Kxd5 {[%emt 0:00:11]} 38. Nd2 {[%emt 0:00:25]} Ke5 {[%emt 0:01:04]} 39. f4+ {[%emt 0:00:28]} Kf6 {[%emt 0:01:05]} 40. Ke3 {[%emt 0:00:13]} h6 {[%emt 0:01:42]} 41. Kd4 {[%emt 0:00:25]} g5 {[%emt 0:00:50]} 42. Bf1 {[%emt 0:00:31]} Bh5 {[%emt 0:00:57]} 43. Nc4 {[%emt 0:00:30]} Bf3 {[%emt 0:01:06]} 44. Ne3 {[%emt 0:00:32]} Bb7 {[%emt 0:01:03]} 45. Bd3 {[%emt 0:00:15]} Bc8 {[%emt 0:00:36]} 46. Kd5 {[%emt 0:00:01]} gxf4 {[%emt 0:02:14]} 47. gxf4 {[%emt 0:00:01]} Bb7+ {[%emt 0:00:10]} 48. Kd6 {[%emt 0:00:02]} Bf3 {[%emt 0:03:05]} 49. Bxf5 {[%emt 0:00:28]} h5 {[%emt 0:00:41]} 50. Be4 {[%emt 0:00:00]} Bg4 {[%emt 0:01:37]} 51. Nd5+ {[%emt 0:00:00]} Kf7 {[%emt 0:00:19]} 52. Ke5 {[%emt 0:00:00]} Be2 {[%emt 0:00:19]} 53. f5 {[%emt 0:00:00]} Bg4 {[%emt 0:00:37]} 54. f6 {[%emt 0:00:00]} Bd1 {[%emt 0:00:56]} 55. Nf4 {[%emt 0:00:00]} Bg4 {[%emt 0:00:35]} 56. Bd5+ {[%emt 0:00:00]} 1-0